[Event "Late-Titled-Tuesday-Blitz-September-05-2023"]
[Site "Chess.com"]
[Date "2023.09.05"]
[Round "3"]
[White "DenishevM"]
[Black "Sjakkerntobi"]
[Result "1-0"]
[WhiteElo "2634"]
[BlackElo "2458"]
[TimeControl "180+1"]
[EndTime "14:26:32 PDT"]
[Termination "DenishevM won by resignation"]

1. d4 {[%clk 0:03:00.9]} 1... Nf6 {[%clk 0:02:59.7]} 2. c4 {[%clk 0:03:00.7]}
2... c5 {[%clk 0:03:00.3]} 3. d5 {[%clk 0:03:01]} 3... e6 {[%clk 0:03:01]} 4.
Nc3 {[%clk 0:03:01]} 4... exd5 {[%clk 0:03:01.8]} 5. cxd5 {[%clk 0:03:01.9]}
5... d6 {[%clk 0:03:02.2]} 6. e4 {[%clk 0:03:00.4]} 6... g6 {[%clk 0:03:02.5]}
7. Nf3 {[%clk 0:03:01]} 7... Bg7 {[%clk 0:03:03.2]} 8. h3 {[%clk 0:03:01.6]}
8... O-O {[%clk 0:03:03.5]} 9. Bd3 {[%clk 0:03:01.7]} 9... Re8 {[%clk
0:03:00.8]} 10. O-O {[%clk 0:02:57.9]} 10... a6 {[%clk 0:03:01.1]} 11. a4 {[%clk
0:02:57.6]} 11... Bd7 {[%clk 0:03:01.3]} 12. Re1 {[%clk 0:02:56.1]} 12... Nh5
{[%clk 0:02:59.3]} 13. Qb3 {[%clk 0:02:49.4]} 13... Bc8 {[%clk 0:02:59]} 14. a5
{[%clk 0:02:46.3]} 14... Nd7 {[%clk 0:02:59]} 15. Bg5 {[%clk 0:02:40.2]} 15...
Bf6 {[%clk 0:02:58.4]} 16. Be3 {[%clk 0:02:39.5]} 16... Ne5 {[%clk 0:02:54]} 17.
Nxe5 {[%clk 0:02:39.4]} 17... Bxe5 {[%clk 0:02:54.9]} 18. Na4 {[%clk 0:02:30.9]}
18... Qh4 {[%clk 0:02:52.1]} 19. Bf1 {[%clk 0:02:22.9]} 19... Rb8 {[%clk
0:02:34.6]} 20. Nb6 {[%clk 0:02:19]} 20... g5 {[%clk 0:02:00.6]} 21. Nxc8 {[%clk
0:02:16.6]} 21... Rexc8 {[%clk 0:02:01.2]} 22. Bd2 {[%clk 0:02:10.7]} 22... g4
{[%clk 0:01:55.9]} 23. g3 {[%clk 0:02:08.7]} 23... Nxg3 {[%clk 0:01:52.4]} 24.
fxg3 {[%clk 0:02:08.6]} 24... Bxg3 {[%clk 0:01:50.9]} 25. Re2 {[%clk 0:01:47.2]}
25... gxh3 {[%clk 0:01:50.6]} 26. Bxh3 {[%clk 0:01:42.8]} 26... Qxh3 {[%clk
0:01:48.7]} 27. Rg2 {[%clk 0:01:42.8]} 27... Kf8 {[%clk 0:01:15]} 28. Qxg3
{[%clk 0:01:40.3]} 28... Qh5 {[%clk 0:01:13.1]} 29. Qg7+ {[%clk 0:01:35]} 29...
Ke7 {[%clk 0:01:13.2]} 30. Bg5+ {[%clk 0:01:35.7]} 30... Ke8 {[%clk 0:01:11.2]}
31. Qg8+ {[%clk 0:01:35.8]} 31... Kd7 {[%clk 0:01:11.3]} 32. Qg7 {[%clk
0:01:32]} 32... Rg8 {[%clk 0:01:04.9]} 33. Qf6 {[%clk 0:01:31.4]} 33... Rbe8
{[%clk 0:01:02.4]} 34. Qf5+ {[%clk 0:01:29.8]} 34... Kc7 {[%clk 0:00:58.7]} 35.
Bd8+ {[%clk 0:01:30]} 1-0

[Event "Late-Titled-Tuesday-Blitz-September-05-2023"]
[Site "Chess.com"]
[Date "2023.09.05"]
[Round "3"]
[White "K_A_S_T_O_R"]
[Black "ArtemDyachuk"]
[Result "1-0"]
[WhiteElo "2952"]
[BlackElo "2554"]
[TimeControl "180+1"]
[EndTime "14:26:43 PDT"]
[Termination "K_A_S_T_O_R won by checkmate"]

1. e4 {[%clk 0:03:00.9]} 1... c5 {[%clk 0:02:57.7]} 2. Nf3 {[%clk 0:03:01]} 2...
d6 {[%clk 0:02:57.4]} 3. d4 {[%clk 0:03:01.5]} 3... cxd4 {[%clk 0:02:57.7]} 4.
Nxd4 {[%clk 0:03:02.2]} 4... Nf6 {[%clk 0:02:58.3]} 5. Nc3 {[%clk 0:03:02.8]}
5... Nc6 {[%clk 0:02:58.8]} 6. Bg5 {[%clk 0:03:02.6]} 6... e6 {[%clk 0:02:58.8]}
7. Qd2 {[%clk 0:03:02.7]} 7... a6 {[%clk 0:02:59.3]} 8. O-O-O {[%clk 0:03:02.8]}
8... Bd7 {[%clk 0:02:59.9]} 9. f3 {[%clk 0:03:02.9]} 9... Be7 {[%clk 0:02:53.9]}
10. Be3 {[%clk 0:03:02.9]} 10... Qc7 {[%clk 0:02:49.6]} 11. g4 {[%clk
0:03:01.5]} 11... h6 {[%clk 0:02:41]} 12. h4 {[%clk 0:03:00.9]} 12... Ne5 {[%clk
0:02:34.2]} 13. Be2 {[%clk 0:03:00.3]} 13... O-O-O {[%clk 0:02:22.7]} 14. g5
{[%clk 0:02:58.5]} 14... Nh5 {[%clk 0:02:07]} 15. Qe1 {[%clk 0:02:57.5]} 15...
Nc4 {[%clk 0:01:47.2]} 16. Bxc4 {[%clk 0:02:56.9]} 16... Qxc4 {[%clk 0:01:48.1]}
17. Nb3 {[%clk 0:02:53.2]} 17... Kb8 {[%clk 0:01:39.3]} 18. Qf2 {[%clk
0:02:48.5]} 18... Rc8 {[%clk 0:01:33.3]} 19. a3 {[%clk 0:02:36.1]} 19... Be8
{[%clk 0:00:55.7]} 20. Ba7+ {[%clk 0:02:16.4]} 20... Ka8 {[%clk 0:00:55]} 21.
Bb6 {[%clk 0:02:10.6]} 21... Qc6 {[%clk 0:00:50.6]} 22. Na5 {[%clk 0:01:52.1]}
22... Qd7 {[%clk 0:00:49.8]} 23. Qd2 {[%clk 0:01:47.6]} 23... g6 {[%clk
0:00:30.9]} 24. Be3 {[%clk 0:01:42.8]} 24... Bd8 {[%clk 0:00:27.6]} 25. Qd4
{[%clk 0:01:36.1]} 25... Bxa5 {[%clk 0:00:19.1]} 26. Qa7# {[%clk 0:01:35.5]} 1-0

[Event "Late-Titled-Tuesday-Blitz-September-05-2023"]
[Site "Chess.com"]
[Date "2023.09.05"]
[Round "3"]
[White "jk13"]
[Black "cthulhuuu"]
[Result "1-0"]
[WhiteElo "2667"]
[BlackElo "2464"]
[TimeControl "180+1"]
[EndTime "14:27:04 PDT"]
[Termination "jk13 won by resignation"]

1. e4 {[%clk 0:02:57.4]} 1... d6 {[%clk 0:02:59.6]} 2. d3 {[%clk 0:02:56.4]}
2... g6 {[%clk 0:02:59.2]} 3. g3 {[%clk 0:02:50.9]} 3... Bg7 {[%clk 0:02:58.9]}
4. Bg2 {[%clk 0:02:51.6]} 4... c5 {[%clk 0:02:59]} 5. Nf3 {[%clk 0:02:51.3]}
5... Nc6 {[%clk 0:02:58.9]} 6. O-O {[%clk 0:02:52]} 6... e6 {[%clk 0:02:57.3]}
7. c3 {[%clk 0:02:51.9]} 7... Nge7 {[%clk 0:02:57.6]} 8. Be3 {[%clk 0:02:50.9]}
8... O-O {[%clk 0:02:56.3]} 9. d4 {[%clk 0:02:50.6]} 9... cxd4 {[%clk
0:02:56.4]} 10. Nxd4 {[%clk 0:02:49.9]} 10... Nxd4 {[%clk 0:02:53.6]} 11. Bxd4
{[%clk 0:02:49.3]} 11... e5 {[%clk 0:02:51]} 12. Be3 {[%clk 0:02:48.8]} 12...
Be6 {[%clk 0:02:51.2]} 13. Nd2 {[%clk 0:02:40.3]} 13... d5 {[%clk 0:02:50.8]}
14. Bc5 {[%clk 0:02:34.7]} 14... Re8 {[%clk 0:02:46.1]} 15. exd5 {[%clk
0:02:23.9]} 15... Nxd5 {[%clk 0:02:44.5]} 16. Ne4 {[%clk 0:02:23.4]} 16... Qc7
{[%clk 0:02:25.9]} 17. Ba3 {[%clk 0:02:12.4]} 17... Rad8 {[%clk 0:02:25.3]} 18.
Qa4 {[%clk 0:02:10.3]} 18... a6 {[%clk 0:02:21.9]} 19. Nc5 {[%clk 0:02:05.7]}
19... Bc8 {[%clk 0:02:13.6]} 20. Bxd5 {[%clk 0:02:02.7]} 20... b5 {[%clk
0:02:10.3]} 21. Qe4 {[%clk 0:02:01.7]} 21... Bf8 {[%clk 0:01:41.8]} 22. Nb3
{[%clk 0:01:52.2]} 22... Rxd5 {[%clk 0:01:16.6]} 23. Qxd5 {[%clk 0:01:43.4]}
23... Bb7 {[%clk 0:01:17]} 24. Qd2 {[%clk 0:01:35.8]} 24... Qc6 {[%clk
0:01:07.5]} 25. f3 {[%clk 0:01:35.4]} 25... Bg7 {[%clk 0:00:56.8]} 26. Qf2
{[%clk 0:01:25.7]} 26... e4 {[%clk 0:00:40.5]} 27. Na5 {[%clk 0:01:24.5]} 27...
e3 {[%clk 0:00:38.9]} 28. Qe2 {[%clk 0:01:21.5]} 28... Qd5 {[%clk 0:00:31.5]}
29. Rad1 {[%clk 0:01:20.3]} 29... Qc4 {[%clk 0:00:26.2]} 30. Nxc4 {[%clk
0:01:20.2]} 1-0

[Event "Late-Titled-Tuesday-Blitz-September-05-2023"]
[Site "Chess.com"]
[Date "2023.09.05"]
[Round "3"]
[White "SchmakAttack"]
[Black "lachesisQ"]
[Result "0-1"]
[WhiteElo "2777"]
[BlackElo "3091"]
[TimeControl "180+1"]
[EndTime "14:27:05 PDT"]
[Termination "lachesisQ won by resignation"]

1. e4 {[%clk 0:03:00.9]} 1... c5 {[%clk 0:02:58]} 2. Nf3 {[%clk 0:03:00.3]} 2...
e6 {[%clk 0:02:58.6]} 3. d4 {[%clk 0:03:00]} 3... cxd4 {[%clk 0:02:59.5]} 4.
Nxd4 {[%clk 0:03:00.5]} 4... a6 {[%clk 0:02:59.4]} 5. c4 {[%clk 0:02:57.8]} 5...
Nc6 {[%clk 0:02:58.9]} 6. Nxc6 {[%clk 0:02:51.8]} 6... bxc6 {[%clk 0:02:57.3]}
7. Nc3 {[%clk 0:02:47.4]} 7... e5 {[%clk 0:02:56.6]} 8. Bd3 {[%clk 0:02:42.9]}
8... Bc5 {[%clk 0:02:56.4]} 9. O-O {[%clk 0:02:43]} 9... d6 {[%clk 0:02:53.1]}
10. Kh1 {[%clk 0:02:33.7]} 10... Nf6 {[%clk 0:02:52.9]} 11. Bg5 {[%clk
0:02:22.1]} 11... h6 {[%clk 0:02:52.4]} 12. Bh4 {[%clk 0:02:22.3]} 12... g5
{[%clk 0:02:51.6]} 13. Bg3 {[%clk 0:02:22.7]} 13... h5 {[%clk 0:02:47.9]} 14. f3
{[%clk 0:02:07.5]} 14... Be6 {[%clk 0:02:47.7]} 15. Qd2 {[%clk 0:01:56.9]} 15...
Nd7 {[%clk 0:02:46.5]} 16. Na4 {[%clk 0:01:49.9]} 16... Bd4 {[%clk 0:02:45.9]}
17. Bf2 {[%clk 0:01:48.2]} 17... Qf6 {[%clk 0:02:32.9]} 18. Rac1 {[%clk
0:01:44.3]} 18... c5 {[%clk 0:02:31.7]} 19. Nc3 {[%clk 0:01:37.3]} 19... h4
{[%clk 0:02:31.3]} 20. Bxd4 {[%clk 0:01:31.8]} 20... exd4 {[%clk 0:02:20.2]} 21.
Nd5 {[%clk 0:01:32]} 21... Bxd5 {[%clk 0:02:20.4]} 22. exd5 {[%clk 0:01:32.4]}
22... Ne5 {[%clk 0:01:59.5]} 23. f4 {[%clk 0:01:19.7]} 23... gxf4 {[%clk
0:01:58.2]} 24. Rxf4 {[%clk 0:01:16.4]} 24... Qg5 {[%clk 0:01:56.7]} 25. Rcf1
{[%clk 0:01:13]} 25... Rg8 {[%clk 0:01:50.4]} 26. Qe2 {[%clk 0:00:45.7]} 26...
Ra7 {[%clk 0:01:50.3]} 27. Rf5 {[%clk 0:00:25]} 27... Qg7 {[%clk 0:01:50.1]} 28.
b4 {[%clk 0:00:19.7]} 28... Re7 {[%clk 0:01:47]} 29. bxc5 {[%clk 0:00:18.8]}
29... Nxd3 {[%clk 0:01:46.3]} 30. Qd2 {[%clk 0:00:15.5]} 30... Nxc5 {[%clk
0:01:45.4]} 31. R5f4 {[%clk 0:00:07.9]} 31... d3 {[%clk 0:01:43.1]} 32. h3
{[%clk 0:00:06.5]} 32... Re2 {[%clk 0:01:42.5]} 0-1

[Event "Late-Titled-Tuesday-Blitz-September-05-2023"]
[Site "Chess.com"]
[Date "2023.09.05"]
[Round "3"]
[White "vanyakuba"]
[Black "onnoelgersma"]
[Result "0-1"]
[WhiteElo "2401"]
[BlackElo "2574"]
[TimeControl "180+1"]
[EndTime "14:27:11 PDT"]
[Termination "onnoelgersma won by resignation"]

1. e4 {[%clk 0:02:58.7]} 1... g6 {[%clk 0:02:58.2]} 2. d4 {[%clk 0:02:58.5]}
2... Bg7 {[%clk 0:02:58.6]} 3. Nc3 {[%clk 0:02:59.3]} 3... d6 {[%clk 0:02:59]}
4. f4 {[%clk 0:02:59.1]} 4... a6 {[%clk 0:02:58.1]} 5. a4 {[%clk 0:02:58.1]}
5... c6 {[%clk 0:02:56.6]} 6. Nf3 {[%clk 0:02:57.4]} 6... d5 {[%clk 0:02:56.8]}
7. e5 {[%clk 0:02:48.3]} 7... Bg4 {[%clk 0:02:55.5]} 8. h3 {[%clk 0:02:45.8]}
8... Bxf3 {[%clk 0:02:55.6]} 9. Qxf3 {[%clk 0:02:46.7]} 9... h5 {[%clk
0:02:56.2]} 10. g4 {[%clk 0:02:44]} 10... e6 {[%clk 0:02:50.9]} 11. Bg2 {[%clk
0:02:32.2]} 11... hxg4 {[%clk 0:02:40.5]} 12. hxg4 {[%clk 0:02:32]} 12... Rxh1+
{[%clk 0:02:41.4]} 13. Bxh1 {[%clk 0:02:32.1]} 13... Qh4+ {[%clk 0:02:42.3]} 14.
Ke2 {[%clk 0:01:44.1]} 14... Nh6 {[%clk 0:02:40]} 15. Bd2 {[%clk 0:01:21.7]}
15... Qxg4 {[%clk 0:02:33.9]} 16. a5 {[%clk 0:01:07.8]} 16... Nd7 {[%clk
0:02:30.2]} 17. Na4 {[%clk 0:01:06.7]} 17... Qxf3+ {[%clk 0:02:29.4]} 18. Bxf3
{[%clk 0:01:06.3]} 18... O-O-O {[%clk 0:02:30.3]} 19. Kd3 {[%clk 0:00:49.8]}
19... Nf5 {[%clk 0:02:28]} 20. Rh1 {[%clk 0:00:32.8]} 20... Rh8 {[%clk
0:02:27.8]} 21. Rxh8+ {[%clk 0:00:32.7]} 21... Bxh8 {[%clk 0:02:28.7]} 22. b3
{[%clk 0:00:32.2]} 22... Bg7 {[%clk 0:02:28.9]} 23. c4 {[%clk 0:00:31.8]} 23...
Bf8 {[%clk 0:02:29.4]} 24. Bg4 {[%clk 0:00:25.1]} 24... Ne7 {[%clk 0:02:29.1]}
25. Bb4 {[%clk 0:00:20.1]} 25... Kd8 {[%clk 0:02:28.4]} 26. Nc5 {[%clk
0:00:08.1]} 26... Nxc5+ {[%clk 0:02:28]} 27. Bxc5 {[%clk 0:00:08.7]} 27... Ke8
{[%clk 0:02:25]} 28. Bxe7 {[%clk 0:00:08.3]} 28... Bxe7 {[%clk 0:02:25.9]} 29.
c5 {[%clk 0:00:07.8]} 29... Bh4 {[%clk 0:02:24.5]} 30. Kc2 {[%clk 0:00:01.3]}
30... Be1 {[%clk 0:02:22.8]} 31. Kd3 {[%clk 0:00:01.6]} 31... Bxa5 {[%clk
0:02:23]} 32. Be2 {[%clk 0:00:02]} 32... Be1 {[%clk 0:02:21.9]} 33. Bg4 {[%clk
0:00:02.2]} 33... Kf8 {[%clk 0:02:21.6]} 34. Bh3 {[%clk 0:00:02]} 34... Ba5
{[%clk 0:02:17.9]} 35. Ke3 {[%clk 0:00:02.3]} 35... Ke7 {[%clk 0:02:17]} 36. Kd3
{[%clk 0:00:02.6]} 36... Kd7 {[%clk 0:02:17.5]} 37. Ke3 {[%clk 0:00:02.6]} 37...
Kc7 {[%clk 0:02:18.1]} 38. Kd3 {[%clk 0:00:03.2]} 38... b6 {[%clk 0:02:18.8]}
39. cxb6+ {[%clk 0:00:03.7]} 39... Bxb6 {[%clk 0:02:19.7]} 40. Bg4 {[%clk
0:00:04.2]} 40... c5 {[%clk 0:02:19.7]} 41. dxc5 {[%clk 0:00:04]} 41... Bxc5
{[%clk 0:02:20.6]} 42. Bf3 {[%clk 0:00:03.7]} 42... Kb6 {[%clk 0:02:21.1]} 43.
Bd1 {[%clk 0:00:02.4]} 43... Ka5 {[%clk 0:02:21.5]} 44. Be2 {[%clk 0:00:01]}
44... Kb4 {[%clk 0:02:22]} 45. Kc2 {[%clk 0:00:01.7]} 45... a5 {[%clk
0:02:22.6]} 46. Bf3 {[%clk 0:00:02.1]} 46... Be3 {[%clk 0:02:22.5]} 47. Bd1
{[%clk 0:00:03]} 47... Bxf4 {[%clk 0:02:22.7]} 48. Kd3 {[%clk 0:00:03.9]} 48...
Bxe5 {[%clk 0:02:23.3]} 0-1

[Event "Late-Titled-Tuesday-Blitz-September-05-2023"]
[Site "Chess.com"]
[Date "2023.09.05"]
[Round "3"]
[White "Qvalda"]
[Black "EstudiandoAjedrezRD"]
[Result "1-0"]
[WhiteElo "2382"]
[BlackElo "2208"]
[TimeControl "180+1"]
[EndTime "14:27:11 PDT"]
[Termination "Qvalda won on time"]

1. d4 {[%clk 0:03:00.9]} 1... Nf6 {[%clk 0:02:09.2]} 2. Nf3 {[%clk 0:02:59.9]}
2... c6 {[%clk 0:02:07.7]} 3. c4 {[%clk 0:02:57.9]} 3... d5 {[%clk 0:02:08.2]}
4. cxd5 {[%clk 0:02:58.8]} 4... cxd5 {[%clk 0:02:08.4]} 5. Nc3 {[%clk
0:02:58.8]} 5... Nc6 {[%clk 0:02:06.7]} 6. Bf4 {[%clk 0:02:58.4]} 6... e6 {[%clk
0:02:05.2]} 7. e3 {[%clk 0:02:52.3]} 7... Bd6 {[%clk 0:02:03.9]} 8. Bg5 {[%clk
0:02:52.1]} 8... h6 {[%clk 0:02:03.5]} 9. Bh4 {[%clk 0:02:51.6]} 9... O-O {[%clk
0:02:02.6]} 10. Bd3 {[%clk 0:02:51.1]} 10... b6 {[%clk 0:02:01.4]} 11. Rc1
{[%clk 0:02:50.3]} 11... Bb7 {[%clk 0:02:01.6]} 12. O-O {[%clk 0:02:49.4]} 12...
Rc8 {[%clk 0:02:01.3]} 13. Bb1 {[%clk 0:02:44.8]} 13... Be7 {[%clk 0:01:57]} 14.
a3 {[%clk 0:02:42.4]} 14... Na5 {[%clk 0:01:57]} 15. Qd3 {[%clk 0:02:38.8]}
15... Ne4 {[%clk 0:01:51.4]} 16. Bxe7 {[%clk 0:02:34]} 16... Qxe7 {[%clk
0:01:52.3]} 17. Nd2 {[%clk 0:02:31]} 17... f5 {[%clk 0:01:47.8]} 18. Nf3 {[%clk
0:02:28.5]} 18... Nc4 {[%clk 0:01:43]} 19. Rc2 {[%clk 0:02:23]} 19... Nxc3
{[%clk 0:01:36.8]} 20. Qxc3 {[%clk 0:02:18.5]} 20... Ba6 {[%clk 0:01:29.8]} 21.
Rfc1 {[%clk 0:02:14.7]} 21... Nd6 {[%clk 0:01:26.4]} 22. Qe1 {[%clk 0:02:08.4]}
22... Ne4 {[%clk 0:01:24]} 23. Ne5 {[%clk 0:02:06.7]} 23... Rxc2 {[%clk
0:01:20]} 24. Rxc2 {[%clk 0:02:06.2]} 24... Rc8 {[%clk 0:01:20.1]} 25. Rxc8+
{[%clk 0:02:05.4]} 25... Bxc8 {[%clk 0:01:20.1]} 26. Qc1 {[%clk 0:02:03.6]}
26... Ba6 {[%clk 0:01:15.5]} 27. Bxe4 {[%clk 0:02:02]} 27... fxe4 {[%clk
0:01:15.3]} 28. Qc6 {[%clk 0:01:56.2]} 28... Kh7 {[%clk 0:01:09.5]} 29. h3
{[%clk 0:01:53.4]} 29... Be2 {[%clk 0:01:05]} 30. Qd7 {[%clk 0:01:43.9]} 1-0

[Event "Late-Titled-Tuesday-Blitz-September-05-2023"]
[Site "Chess.com"]
[Date "2023.09.05"]
[Round "3"]
[White "Emp3rador"]
[Black "Aradhya2000"]
[Result "0-1"]
[WhiteElo "2498"]
[BlackElo "2726"]
[TimeControl "180+1"]
[EndTime "14:27:19 PDT"]
[Termination "Aradhya2000 won by resignation"]

1. e4 {[%clk 0:03:00.9]} 1... e5 {[%clk 0:02:59.8]} 2. Nf3 {[%clk 0:02:59.9]}
2... Nc6 {[%clk 0:03:00.3]} 3. d4 {[%clk 0:03:00]} 3... exd4 {[%clk 0:03:00.2]}
4. Nxd4 {[%clk 0:03:00.9]} 4... Nf6 {[%clk 0:03:00.2]} 5. Nc3 {[%clk 0:03:00.7]}
5... Bb4 {[%clk 0:02:59.9]} 6. Nxc6 {[%clk 0:03:00.5]} 6... dxc6 {[%clk
0:03:00.7]} 7. Qxd8+ {[%clk 0:02:59.2]} 7... Kxd8 {[%clk 0:03:01.6]} 8. Bg5
{[%clk 0:02:58]} 8... h6 {[%clk 0:02:59.2]} 9. Bd2 {[%clk 0:02:33.6]} 9... Be6
{[%clk 0:02:58.2]} 10. O-O-O {[%clk 0:02:30.8]} 10... Kc8 {[%clk 0:02:58.3]} 11.
a3 {[%clk 0:02:30.1]} 11... Ba5 {[%clk 0:02:57.7]} 12. f3 {[%clk 0:02:12.6]}
12... Nd7 {[%clk 0:02:51.4]} 13. Na4 {[%clk 0:02:06.1]} 13... Bxd2+ {[%clk
0:02:50.5]} 14. Rxd2 {[%clk 0:02:07]} 14... a5 {[%clk 0:02:50.1]} 15. Be2 {[%clk
0:02:04.1]} 15... b6 {[%clk 0:02:50]} 16. Rhd1 {[%clk 0:02:02.5]} 16... g5
{[%clk 0:02:49.5]} 17. Bc4 {[%clk 0:01:32.1]} 17... Ne5 {[%clk 0:02:47]} 18.
Bxe6+ {[%clk 0:01:29.1]} 18... fxe6 {[%clk 0:02:47.9]} 19. b3 {[%clk 0:01:19.7]}
19... Kb7 {[%clk 0:02:47.8]} 20. Nb2 {[%clk 0:01:19.5]} 20... c5 {[%clk
0:02:46]} 21. Nd3 {[%clk 0:01:19.5]} 21... Nc6 {[%clk 0:02:45.7]} 22. Nf2 {[%clk
0:01:17.2]} 22... Raf8 {[%clk 0:02:42.5]} 23. Rd7 {[%clk 0:01:11.9]} 23... Nd4
{[%clk 0:02:41.9]} 24. Kb2 {[%clk 0:00:59.3]} 24... Kc8 {[%clk 0:02:31.6]} 25.
Re7 {[%clk 0:00:50.9]} 25... Re8 {[%clk 0:02:30.8]} 26. Rxe8+ {[%clk 0:00:48.6]}
26... Rxe8 {[%clk 0:02:31.7]} 27. Ng4 {[%clk 0:00:48.3]} 27... Rh8 {[%clk
0:02:24.2]} 28. Ne5 {[%clk 0:00:46.3]} 28... Rh7 {[%clk 0:02:23.4]} 29. a4
{[%clk 0:00:43.8]} 29... Kb7 {[%clk 0:02:17.7]} 30. c3 {[%clk 0:00:43.6]} 30...
Nc6 {[%clk 0:02:17.6]} 31. Rd7 {[%clk 0:00:29.6]} 31... Rxd7 {[%clk 0:02:16.1]}
32. Nxd7 {[%clk 0:00:30.5]} 32... Kc8 {[%clk 0:02:15.7]} 33. Nf6 {[%clk
0:00:29.7]} 33... Ne5 {[%clk 0:02:15.1]} 34. Kc2 {[%clk 0:00:25]} 34... Kd8
{[%clk 0:02:15.1]} 35. Ng4 {[%clk 0:00:17.3]} 35... Nxg4 {[%clk 0:02:11.9]} 36.
fxg4 {[%clk 0:00:18.2]} 36... Kd7 {[%clk 0:02:11.9]} 37. e5 {[%clk 0:00:17.8]}
37... c4 {[%clk 0:02:10.9]} 38. bxc4 {[%clk 0:00:13.4]} 38... Kc6 {[%clk
0:02:11.1]} 39. Kd2 {[%clk 0:00:12.6]} 39... Kc5 {[%clk 0:02:08.4]} 40. Kd3
{[%clk 0:00:12.9]} 40... c6 {[%clk 0:02:08.8]} 41. h3 {[%clk 0:00:11.3]} 41...
b5 {[%clk 0:02:09]} 42. cxb5 {[%clk 0:00:11.2]} 42... cxb5 {[%clk 0:02:09.9]}
43. axb5 {[%clk 0:00:10.4]} 43... Kxb5 {[%clk 0:02:10.8]} 44. c4+ {[%clk
0:00:10.6]} 44... Kc5 {[%clk 0:02:10.9]} 45. Kc3 {[%clk 0:00:10.9]} 45... a4
{[%clk 0:02:11.3]} 46. g3 {[%clk 0:00:11.6]} 46... a3 {[%clk 0:02:10.9]} 47. Kb3
{[%clk 0:00:12.1]} 47... a2 {[%clk 0:02:11.4]} 48. Kb2 {[%clk 0:00:12.7]} 48...
Kxc4 {[%clk 0:02:11.5]} 49. Kxa2 {[%clk 0:00:13.6]} 49... Kd4 {[%clk 0:02:11.3]}
50. Kb2 {[%clk 0:00:14.3]} 50... Kxe5 {[%clk 0:02:11.4]} 51. Kc2 {[%clk
0:00:15.1]} 51... Ke4 {[%clk 0:02:12]} 52. Kd2 {[%clk 0:00:15.8]} 52... Kf3
{[%clk 0:02:12.6]} 0-1

[Event "Late-Titled-Tuesday-Blitz-September-05-2023"]
[Site "Chess.com"]
[Date "2023.09.05"]
[Round "3"]
[White "azikom"]
[Black "canary2016"]
[Result "1-0"]
[WhiteElo "2665"]
[BlackElo "2040"]
[TimeControl "180+1"]
[EndTime "14:27:20 PDT"]
[Termination "azikom won by resignation"]

1. Nf3 {[%clk 0:03:00]} 1... Nf6 {[%clk 0:02:58.7]} 2. c4 {[%clk 0:02:59.8]}
2... g6 {[%clk 0:02:57.7]} 3. b4 {[%clk 0:02:59.7]} 3... Bg7 {[%clk 0:02:56.9]}
4. Bb2 {[%clk 0:03:00.6]} 4... O-O {[%clk 0:02:55]} 5. e3 {[%clk 0:03:00.4]}
5... d5 {[%clk 0:02:49]} 6. cxd5 {[%clk 0:02:59.9]} 6... Nxd5 {[%clk 0:02:48.7]}
7. Bxg7 {[%clk 0:03:00.1]} 7... Kxg7 {[%clk 0:02:48.7]} 8. Qb3 {[%clk
0:03:00.5]} 8... Be6 {[%clk 0:02:46.4]} 9. Qb2+ {[%clk 0:02:59.8]} 9... Nf6
{[%clk 0:02:45.1]} 10. Be2 {[%clk 0:02:57.8]} 10... b6 {[%clk 0:02:25.1]} 11.
O-O {[%clk 0:02:47.5]} 11... Nd7 {[%clk 0:02:10.8]} 12. Nd4 {[%clk 0:02:39]}
12... Bd5 {[%clk 0:02:02.4]} 13. Nc3 {[%clk 0:02:38.2]} 13... Bb7 {[%clk
0:02:01.8]} 14. b5 {[%clk 0:02:28.5]} 14... Rc8 {[%clk 0:01:57.8]} 15. a4 {[%clk
0:02:28.4]} 15... c6 {[%clk 0:01:56.2]} 16. Bf3 {[%clk 0:02:22.9]} 16... Qc7
{[%clk 0:01:55.2]} 17. bxc6 {[%clk 0:02:21.1]} 17... Bxc6 {[%clk 0:01:42.3]} 18.
Nxc6 {[%clk 0:02:19.7]} 18... Nc5 {[%clk 0:01:38.6]} 19. Nb5 {[%clk 0:02:15.8]}
19... Qd7 {[%clk 0:01:33.3]} 20. Ne5 {[%clk 0:02:11.3]} 20... Qe6 {[%clk
0:01:26.4]} 21. d4 {[%clk 0:02:11.3]} 21... Nb7 {[%clk 0:01:15.3]} 22. Bxb7
{[%clk 0:02:09.8]} 22... Rb8 {[%clk 0:01:02.2]} 23. Bf3 {[%clk 0:02:09.1]} 23...
a6 {[%clk 0:01:01.8]} 24. Nc3 {[%clk 0:02:08.5]} 24... Nd7 {[%clk 0:00:55.3]}
25. Nxd7 {[%clk 0:02:07.4]} 25... Qxd7 {[%clk 0:00:55.7]} 26. h4 {[%clk
0:02:04.7]} 26... Rfc8 {[%clk 0:00:54.4]} 27. Rfc1 {[%clk 0:02:02.9]} 27... Qd6
{[%clk 0:00:49.6]} 28. h5 {[%clk 0:02:00.7]} 28... e5 {[%clk 0:00:44.1]} 29. Ne4
{[%clk 0:01:59.4]} 29... Qe6 {[%clk 0:00:37.8]} 30. dxe5 {[%clk 0:01:58]} 30...
gxh5 {[%clk 0:00:31.7]} 31. Ng3 {[%clk 0:01:54.7]} 31... Kh8 {[%clk 0:00:30.2]}
32. Nxh5 {[%clk 0:01:54.8]} 32... Rg8 {[%clk 0:00:29.4]} 33. Nf4 {[%clk
0:01:54.8]} 33... Qh6 {[%clk 0:00:26.8]} 34. e6+ {[%clk 0:01:54]} 34... f6
{[%clk 0:00:27.3]} 35. Rc7 {[%clk 0:01:51.5]} 35... Rbe8 {[%clk 0:00:09.7]} 36.
Rd1 {[%clk 0:01:48.8]} 36... Qg5 {[%clk 0:00:06.9]} 37. Rdd7 {[%clk 0:01:45.2]}
1-0

[Event "Late-Titled-Tuesday-Blitz-September-05-2023"]
[Site "Chess.com"]
[Date "2023.09.05"]
[Round "3"]
[White "talaicito"]
[Black "schack_vit"]
[Result "0-1"]
[WhiteElo "2248"]
[BlackElo "2423"]
[TimeControl "180+1"]
[EndTime "14:27:29 PDT"]
[Termination "schack_vit won by resignation"]

1. d4 {[%clk 0:03:00.9]} 1... d5 {[%clk 0:02:58.6]} 2. Nc3 {[%clk 0:03:01.5]}
2... Nf6 {[%clk 0:02:57.6]} 3. Bf4 {[%clk 0:03:02.1]} 3... c5 {[%clk 0:02:55.9]}
4. e3 {[%clk 0:03:02.6]} 4... e6 {[%clk 0:02:53.4]} 5. Nb5 {[%clk 0:03:02.1]}
5... Na6 {[%clk 0:02:53.1]} 6. c3 {[%clk 0:03:02.7]} 6... Be7 {[%clk 0:02:52.7]}
7. Nf3 {[%clk 0:03:03.1]} 7... O-O {[%clk 0:02:53]} 8. Ne5 {[%clk 0:03:03.5]}
8... Nd7 {[%clk 0:02:43.6]} 9. Bd3 {[%clk 0:03:01.7]} 9... Nxe5 {[%clk
0:02:43.2]} 10. Bxe5 {[%clk 0:02:54.9]} 10... Bd7 {[%clk 0:02:41.1]} 11. a4
{[%clk 0:02:53.6]} 11... Qb6 {[%clk 0:02:31.7]} 12. Qh5 {[%clk 0:02:33.6]} 12...
f5 {[%clk 0:02:29.8]} 13. g4 {[%clk 0:02:29.6]} 13... c4 {[%clk 0:02:20.4]} 14.
Bc2 {[%clk 0:02:28.8]} 14... Bxb5 {[%clk 0:02:11.9]} 15. axb5 {[%clk 0:02:29.7]}
15... Qxb5 {[%clk 0:02:12.6]} 16. Ra2 {[%clk 0:02:29.6]} 16... Qd7 {[%clk
0:01:18.2]} 17. gxf5 {[%clk 0:02:21]} 17... exf5 {[%clk 0:01:19.1]} 18. Rg1
{[%clk 0:02:20.7]} 18... Rf7 {[%clk 0:01:18.4]} 19. Bxf5 {[%clk 0:01:31.8]}
19... Qxf5 {[%clk 0:01:08.8]} 20. Rxg7+ {[%clk 0:01:31.2]} 20... Kf8 {[%clk
0:01:08.9]} 21. Rxf7+ {[%clk 0:01:08.6]} 21... Qxf7 {[%clk 0:01:09]} 22. Qh6+
{[%clk 0:01:05.2]} 22... Kg8 {[%clk 0:01:07.1]} 23. Ke2 {[%clk 0:00:47.1]} 23...
Rf8 {[%clk 0:01:06]} 24. f3 {[%clk 0:00:14.1]} 24... Qxf3+ {[%clk 0:01:05.2]}
25. Kd2 {[%clk 0:00:12.6]} 25... Qf2+ {[%clk 0:01:04.7]} 26. Kd1 {[%clk
0:00:09.8]} 26... Qf1+ {[%clk 0:01:05]} 0-1